bitfinex-derivatives/quotes_ETHF0:USTF0_20241007
["timestamp","ask_amount","ask_price","bid_price","bid_amount"]
[1728293321265,0.40679,2458.7,2458.5,0.4068]
[1728293321461,4.22465,2459.0,2458.5,0.4068]
[1728293321761,0.40678,2458.7,2458.5,0.4068]
[1728293321963,0.40677,2458.8,2458.6,0.40678]
[1728293322165,0.40675,2458.9,2458.7,0.40677]
[1728293322467,0.40677,2458.8,2458.6,0.40679]
[1728293322761,0.40678,2458.7,2458.5,0.4068]
[1728293322961,0.40674,2458.9,2458.6,0.40679]
[1728293323162,0.40678,2458.7,2458.6,0.40679]
[1728293323665,4.22462,2459.0,2458.6,0.40679]
[1728293323868,0.40677,2458.8,2458.6,0.40679]
[1728293324858,3.2078,2459.0,2458.3,1.3678]
[1728293325061,0.40675,2458.9,2458.7,0.40677]
[1728293325263,3.2078,2459.0,2458.7,0.40677]
[1728293325455,0.40676,2458.8,2458.7,0.40677]
[1728293326469,1.01686,2458.9,2458.3,1.3678]
[1728293326663,0.40679,2458.7,2458.5,0.4068]
[1728293326871,0.40679,2458.7,2458.3,1.3678]
[1728293327070,1.01686,2458.9,2458.5,0.40679]
[1728293327369,0.40679,2458.7,2458.5,0.40679]
[1728293327766,0.40682,2458.4,2458.3,1.3678]
[1728293328068,0.40682,2458.4,2458.3,0.6914]
[1728293329564,0.40685,2458.3,2458.1,0.40687]
[1728293329765,0.40685,2458.3,2457.4,1.01745]
[1728293329766,0.40695,2457.7,2457.5,3.61476]
[1728293329966,0.6564,2458.2,2457.5,3.2078]
[1728293330463,1.06327,2458.2,2458.0,0.40688]
[1728293330664,0.6564,2458.2,2457.5,3.2078]
[1728293330866,0.40687,2458.1,2457.8,0.40691]
[1728293331069,0.40692,2457.9,2457.7,0.40693]
[1728293331259,1.01719,2458.1,2457.5,3.2078]
[1728293331575,0.40694,2457.8,2457.6,0.40695]
[1728293332658,0.40691,2457.9,2457.5,3.2078]
[1728293333066,0.40691,2457.9,2457.7,0.40693]
[1728293333371,0.40687,2458.1,2457.9,0.4069]
[1728293334471,0.6564,2458.2,2457.8,0.40692]
[1728293334672,0.4069,2458.0,2457.8,0.40692]
[1728293334870,0.6564,2458.2,2457.5,4.22522]
[1728293335072,0.40688,2458.1,2458.0,0.40689]
[1728293335273,0.40688,2458.1,2457.5,4.22522]
[1728293335274,0.40688,2458.1,2457.9,0.40689]
[1728293335571,3.2078,2458.3,2458.0,0.40689]
[1728293335963,0.40687,2458.1,2458.0,0.40689]
[1728293336366,0.40684,2458.4,2458.2,0.40684]
[1728293336564,0.40686,2458.2,2458.1,1.08937]
[1728293336771,0.40686,2458.2,2458.1,0.6825]
[1728293336969,0.40686,2458.2,2458.1,1.08937]
[1728293337170,0.40686,2458.2,2458.1,0.6825]
[1728293337569,3.2078,2458.4,2457.9,0.4069]
[1728293337769,0.40689,2458.0,2457.9,0.4069]
[1728293337968,1.01711,2458.3,2458.0,0.40688]
[1728293337969,0.40686,2458.2,2458.0,0.40688]
[1728293338167,1.01711,2458.3,2457.9,0.4069]
[1728293338375,0.40689,2458.1,2457.8,0.6701]
[1728293338675,0.40689,2458.1,2457.9,0.40689]
[1728293338879,0.40691,2457.9,2457.8,1.07702]
[1728293339065,1.01715,2458.2,2457.8,0.6701]
[1728293339066,0.4069,2458.0,2457.8,0.6701]
[1728293339375,0.4069,2458.0,2457.9,0.40691]
[1728293339873,1.01715,2458.2,2457.9,0.40691]
[1728293340078,0.40689,2458.1,2457.9,0.40691]
[1728293340677,0.40691,2457.9,2457.8,1.07702]
[1728293340873,1.01715,2458.2,2457.8,1.07702]
[1728293341178,0.40691,2457.9,2457.8,0.6701]
[1728293341469,0.4069,2458.0,2457.9,0.40691]
[1728293341975,3.2078,2458.4,2458.0,0.40689]
[1728293341976,0.40688,2458.1,2458.0,0.40689]
[1728293343069,0.40686,2458.2,2458.1,0.40687]
[1728293343564,1.01713,2458.3,2457.6,0.6825]
[1728293343765,0.40692,2457.9,2457.8,0.40692]
[1728293344266,0.40692,2457.9,2457.8,4.47572]
[1728293344678,1.01721,2458.1,2457.8,4.0688]
[1728293344980,1.01721,2458.1,2457.7,0.40693]
[1728293345369,3.2078,2458.1,2457.6,0.6825]
[1728293345679,0.40694,2457.7,2457.6,1.08945]
[1728293345978,1.01723,2458.0,2457.6,1.08945]
[1728293346171,0.40694,2457.8,2457.6,1.08945]
[1728293346367,0.40691,2457.9,2457.6,1.08945]
[1728293346575,0.40694,2457.8,2457.6,1.08945]
[1728293347171,1.01715,2458.2,2457.6,0.6825]
[1728293347473,1.10148,2458.7,2458.6,0.40679]
[1728293347674,1.01689,2458.9,2458.3,3.2078]
[1728293347973,0.4068,2458.6,2458.4,1.09082]
[1728293348167,1.01689,2458.9,2458.4,0.684]
[1728293348365,0.40681,2458.5,2458.4,0.684]
[1728293349168,0.4068,2458.6,2458.4,0.684]
[1728293349378,0.40677,2458.8,2458.6,0.40678]
[1728293349577,0.40678,2458.7,2458.5,0.4068]
[1728293349980,0.40677,2458.8,2458.6,0.40678]
[1728293351082,3.2078,2459.0,2458.4,0.684]
[1728293351272,3.2078,2459.0,2458.8,0.40675]
[1728293351273,0.40673,2459.0,2458.8,0.40675]
[1728293351471,3.2078,2459.3,2458.4,1.70105]
[1728293351672,3.2078,2459.3,2458.8,0.40675]
[1728293351673,0.40673,2459.0,2458.8,0.40675]
[1728293352076,0.6636,2459.5,2458.4,0.684]
[1728293352273,3.2078,2459.3,2458.4,0.684]
[1728293352474,0.40678,2458.7,2458.5,0.4068]
[1728293352979,1.01683,2459.0,2458.4,1.09082]
[1728293352980,0.4068,2458.6,2458.4,1.09082]
[1728293354176,1.01687,2458.9,2458.4,0.684]
[1728293354488,1.05653,2459.0,2458.4,0.684]
[1728293354680,1.05653,2459.0,2458.8,0.40675]
[1728293355279,3.61449,2459.3,2459.1,0.40671]
[1728293355585,3.2078,2459.3,2458.6,4.22477]
[1728293355777,0.40667,2459.4,2458.7,2.37172]
[1728293355982,0.40667,2459.4,2459.2,0.40669]
[1728293356184,0.40668,2459.3,2459.2,0.40669]
[1728293356878,0.40666,2459.4,2459.2,0.40669]
[1728293357181,0.6498,2459.5,2459.2,0.40669]
[1728293357485,0.40667,2459.4,2459.2,0.40669]
[1728293357787,0.40668,2459.3,2459.2,0.40669]
[1728293359784,0.6498,2459.5,2458.7,1.3548]
[1728293360085,0.40669,2459.2,2458.9,0.40674]
[1728293360288,0.40668,2459.3,2459.2,0.40669]
[1728293360481,4.4598,2459.5,2458.7,5.1648]
[1728293360788,4.4598,2459.5,2459.0,0.40672]
[1728293360975,0.4067,2459.2,2459.0,0.40672]
[1728293361180,4.4598,2459.5,2458.7,5.1648]
[1728293361492,0.40671,2459.1,2458.7,5.1648]
[1728293361787,0.40673,2459.0,2458.7,5.1648]
[1728293362084,0.40677,2458.8,2458.6,0.40678]
[1728293362283,0.40676,2458.8,2458.6,0.40678]
[1728293362486,0.40678,2458.7,2458.5,0.4068]
[1728293362679,7.0178,2458.9,2458.5,0.4068]
[1728293362882,0.4068,2458.6,2458.5,0.40681]
[1728293363278,8.03468,2458.9,2458.4,0.684]
[1728293363487,1.0169,2458.8,2458.4,0.684]
[1728293363691,1.0169,2458.8,2457.7,2.82237504]
[1728293363692,3.81,2458.5,2457.8,3.2078]
[1728293363898,7.0178,2457.9,2457.2,0.6936]
[1728293364191,7.0178,2457.9,2457.2,1.10062]
[1728293364192,0.40698,2457.5,2457.2,1.10062]
[1728293364391,0.40697,2457.5,2457.2,0.6936]
[1728293364690,0.40697,2457.5,2457.2,1.10062]
[1728293364888,3.81,2457.6,2457.2,0.6936]
[1728293365095,0.40698,2457.5,2457.2,1.10061]
[1728293365295,4.21697,2457.6,2457.3,0.407]
[1728293365791,0.407,2457.4,2457.2,1.10061]
[1728293365990,3.81,2457.6,2457.2,0.6936]
[1728293366198,0.407,2457.4,2457.2,0.6936]
[1728293366391,4.69,2457.7,2457.2,1.10062]
[1728293366592,4.69,2457.7,2457.2,0.6936]
[1728293366790,3.2078,2457.6,2457.2,0.6936]
[1728293366991,0.407,2457.4,2457.2,0.6936]
[1728293367292,0.407,2457.4,2457.2,1.10062]
[1728293368286,3.61476,2457.6,2457.3,0.407]
[1728293368589,0.40696,2457.6,2457.3,0.407]
[1728293369089,1.0611,2458.0,2457.7,0.40693]
[1728293369292,0.4069,2458.0,2457.6,0.40695]
[1728293369599,0.40691,2457.9,2457.6,0.40695]
[1728293370097,3.2078,2458.1,2457.4,0.40698]
[1728293370293,3.2078,2457.8,2457.2,3.9014]
[1728293370489,0.40697,2457.6,2457.2,4.30841]
[1728293370689,0.40697,2457.6,2457.2,3.9014]
[1728293370894,0.40697,2457.6,2457.3,0.407]
[1728293371088,0.40692,2457.8,2457.3,0.407]
[1728293371400,0.407,2457.4,2457.2,3.9014]
[1728293371697,0.40698,2457.5,2457.2,4.30842]
[1728293372099,0.407,2457.4,2457.2,3.9014]
[1728293373591,0.40699,2457.5,2457.2,4.30842]
[1728293375692,1.01736,2457.7,2457.4,0.40698]
[1728293375693,0.40695,2457.7,2457.4,0.40698]
[1728293376091,0.40697,2457.6,2457.3,0.407]
[1728293376290,0.40698,2457.5,2457.2,4.30841]
[1728293376692,0.40698,2457.5,2457.3,4.0696]
[1728293376893,0.407,2457.4,2457.2,3.9014]
[1728293377198,0.40698,2457.5,2457.2,4.30841]
[1728293377589,0.40698,2457.5,2457.3,0.40701]
[1728293377790,1.01752,2457.3,2456.1,3.2078]
[1728293377990,1.01752,2457.3,2456.3,0.7221]
[1728293377991,0.40717,2456.4,2456.3,0.7221]
[1728293378901,0.40717,2456.4,2455.9,1.3823]
[1728293378902,0.40722,2456.0,2455.9,1.3823]
[1728293379099,0.40722,2456.0,2455.9,0.7235]
[1728293379399,4.22577,2456.3,2455.6,0.40728]
[1728293379595,0.40723,2456.0,2455.6,0.40728]
[1728293379797,4.22577,2456.3,2455.5,4.5887]
[1728293380001,0.40722,2456.1,2455.6,0.40729]
[1728293380202,4.22577,2456.3,2455.5,4.5887]
[1728293380404,0.40724,2456.0,2455.6,0.40728]
[1728293381000,4.22577,2456.3,2455.5,4.5887]
[1728293381209,0.40721,2456.1,2455.7,0.40727]
[1728293381395,4.69,2456.2,2455.5,1.3809]
[1728293381601,3.2078,2456.0,2455.5,1.3809]
[1728293381904,0.40724,2455.9,2455.5,1.3809]
[1728293382102,0.40724,2455.9,2455.6,0.40729]
[1728293382303,0.40724,2455.9,2455.6,0.40728]
[1728293382603,3.2078,2456.0,2455.2,1.01839]
[1728293382807,3.61504,2456.0,2455.6,0.40727]
[1728293383001,3.61504,2456.0,2455.7,0.40727]
[1728293383198,3.61504,2456.0,2455.2,1.01839]
[1728293383199,3.2078,2456.0,2455.2,1.01839]
[1728293383500,0.40726,2455.8,2455.5,0.4073]
[1728293383698,0.40726,2455.8,2455.6,0.40728]
[1728293383900,0.40724,2455.9,2455.6,0.40728]
[1728293384600,3.2078,2455.7,2455.5,0.40729]
[1728293384810,3.2078,2455.7,2455.6,0.40729]
[1728293385199,3.2078,2455.7,2455.6,4.47929]
[1728293385600,3.2078,2455.7,2455.6,0.40729]
[1728293385905,3.2078,2456.0,2455.9,0.40723]
[1728293386699,3.2078,2456.3,2455.9,4.072]
[1728293386906,3.2078,2456.3,2455.5,1.01824]
[1728293387107,3.2078,2456.3,2456.2,0.40719]
[1728293390214,0.40714,2456.5,2456.3,0.40717]
[1728293390511,3.2078,2456.6,2456.4,0.40715]
[1728293390512,3.61492,2456.6,2456.4,0.40715]
[1728293390810,3.61492,2456.6,2456.5,0.40714]
[1728293390811,3.2078,2456.6,2456.5,0.40714]
[1728293391004,3.2078,2456.6,2456.1,0.7072]
[1728293391204,3.61493,2456.6,2456.4,0.40715]
[1728293391413,3.2078,2456.6,2456.4,0.40715]
[1728293391609,3.2078,2456.6,2456.1,0.7072]
[1728293392207,3.2078,2456.6,2456.5,0.40714]
[1728293392611,3.2078,2456.6,2456.5,4.47754]
[1728293393809,3.2078,2456.6,2456.1,0.7072]
[1728293394007,3.2078,2456.6,2456.5,0.40714]
[1728293396609,3.2078,2456.6,2456.1,0.7072]
[1728293396909,3.2078,2456.3,2456.2,0.40719]
[1728293399307,3.2078,2456.3,2456.1,1.1144]
[1728293400207,0.40719,2456.2,2455.9,3.61503]
[1728293400411,7.0178,2456.3,2456.0,0.40721]
[1728293400712,7.42498,2456.3,2455.9,3.61502]
[1728293400911,7.42498,2456.3,2456.0,0.40722]
[1728293401100,7.0178,2456.3,2455.6,1.3871]
[1728293401705,7.0178,2456.3,2455.9,0.40723]
[1728293401706,0.4072,2456.2,2455.9,0.40723]
[1728293402005,0.4072,2456.2,2455.6,1.3871]
[1728293402006,7.42498,2456.3,2456.0,0.40721]
[1728293402206,0.40724,2456.0,2455.7,0.40727]
[1728293402411,3.81,2456.1,2455.7,4.47927]
[1728293402612,0.40724,2456.0,2455.6,1.3871]
[1728293402815,0.40725,2455.9,2455.6,1.79438]
[1728293403113,0.40725,2455.9,2455.6,1.12999]
[1728293403114,0.40726,2455.8,2455.6,1.12999]
[1728293403312,0.40726,2455.8,2455.6,0.7227]
[1728293403507,3.81,2455.9,2455.6,0.7227]
[1728293403822,7.0178,2455.7,2455.3,0.6742]
[1728293404118,3.2078,2455.7,2455.6,0.40729]
[1728293404315,3.81,2455.9,2455.7,0.40726]
[1728293404617,3.2078,2456.1,2456.0,0.40722]
[1728293405014,3.2078,2456.1,2456.0,4.47842]
[1728293405206,7.0178,2456.1,2455.8,1.4024]
[1728293405510,7.0178,2456.1,2455.9,0.40723]
[1728293405711,7.0178,2456.1,2456.0,0.40722]
[1728293406015,3.2078,2457.4,2456.0,8.12283274]
[1728293406207,3.2078,2457.4,2457.0,0.40705]
[1728293406407,0.40702,2457.3,2456.9,0.40706]
[1728293406608,0.40701,2457.3,2456.8,0.40708]
[1728293406909,4.69,2456.9,2456.1,2.43377504]
[1728293407115,0.40714,2456.6,2456.2,0.40718]
[1728293407417,3.2078,2456.7,2456.1,1.7826]
[1728293407606,3.2078,2456.7,2456.1,0.4072]
[1728293407607,5.3813,2456.6,2456.1,0.4072]
[1728293407809,0.40716,2456.4,2456.1,0.4072]
[1728293408009,3.2078,2456.4,2456.0,0.7058]
[1728293408209,3.2078,2456.4,2456.2,0.40718]
[1728293408610,3.2078,2456.4,2455.9,1.609]
[1728293408611,3.61496,2456.4,2456.1,0.40719]
[1728293409013,3.2078,2456.4,2456.2,0.40719]
[1728293409911,3.61497,2456.4,2456.1,0.4072]
[1728293410105,3.2078,2456.4,2456.2,0.40718]
[1728293410709,3.8613,2456.8,2456.6,0.40711]
[1728293410923,4.2684,2456.8,2456.6,0.40711]
[1728293411819,3.8613,2456.8,2456.6,0.40711]
[1728293412020,4.2684,2456.8,2456.6,0.40711]
[1728293412221,3.8613,2456.8,2456.2,1.01798]
[1728293412520,3.2078,2456.8,2456.6,0.40711]
[1728293412819,3.61489,2456.8,2456.6,0.40711]
[1728293413415,3.2078,2456.8,2456.6,0.40711]
[1728293414215,4.69,2457.2,2456.7,4.0704]
[1728293414216,3.2078,2457.2,2456.7,4.0704]
[1728293414419,0.7034,2457.3,2457.2,0.40702]
[1728293415621,3.2078,2457.5,2457.3,0.40705]
[1728293416027,3.2078,2457.5,2457.2,0.40706]
[1728293416327,3.2078,2457.5,2457.1,0.50877]
[1728293416512,3.2078,2457.5,2457.1,0.1017]
[1728293417023,3.2078,2457.5,2457.3,0.40705]
[1728293417412,3.2078,2457.5,2457.1,0.1017]
[1728293417617,3.2078,2457.5,2457.3,0.40705]
[1728293418419,3.2078,2457.5,2457.2,0.40706]
[1728293418720,3.2078,2457.5,2457.1,0.50877]
[1728293419020,3.2078,2457.5,2457.2,0.40706]
[1728293419424,3.2078,2457.5,2457.1,0.1017]
[1728293419626,3.2078,2457.5,2457.2,0.40706]
[1728293420520,3.2078,2457.5,2457.1,0.1017]
[1728293420722,3.2078,2457.5,2457.1,0.50877]
[1728293421028,3.2078,2457.5,2457.1,0.1017]
[1728293421425,3.2078,2457.5,2457.4,0.40703]
[1728293422518,0.6599,2457.6,2457.5,0.40701]
[1728293422828,3.2078,2458.2,2457.2,5.6776]
[1728293423023,3.2078,2458.2,2458.1,0.40692]
[1728293423930,3.2078,2458.2,2458.0,0.40692]
[1728293424523,3.2078,2458.2,2457.5,0.7225]
[1728293424828,1.344,2458.4,2457.0,4.19]
[1728293424829,3.2078,2458.0,2457.0,4.19]
[1728293425026,3.61478,2457.7,2457.3,0.40704]
[1728293425329,1.344,2457.6,2457.3,0.40704]
[1728293425726,1.344,2457.6,2457.3,0.40705]
[1728293425926,1.344,2457.6,2456.9,1.72968]
[1728293426128,1.344,2457.6,2457.4,0.40702]
[1728293426331,3.2078,2457.5,2457.4,0.40702]
[1728293427530,3.2078,2457.5,2457.4,0.40703]
[1728293429325,3.2078,2457.5,2457.4,4.47663]
[1728293429629,3.2078,2457.5,2457.4,0.40703]
[1728293430227,3.2078,2457.5,2457.3,0.40704]
[1728293430429,3.2078,2457.5,2457.4,0.40703]
[1728293430929,3.2078,2457.5,2457.4,4.47663]
[1728293431132,3.2078,2457.5,2457.4,14.28663]
[1728293431426,3.2078,2457.8,2457.4,13.8796]
[1728293431635,3.2078,2457.5,2457.3,0.50873]
[1728293432028,3.2078,2457.5,2457.3,0.40703]
[1728293432429,3.2078,2457.5,2457.4,0.40703]
[1728293433031,3.2078,2457.5,2457.4,4.47663]
[1728293433534,3.2078,2457.5,2457.4,0.40703]
[1728293433737,3.61481,2457.5,2457.4,4.0696]
[1728293434038,3.61481,2457.5,2457.3,0.40704]
[1728293434537,3.2078,2457.5,2457.3,0.40704]
[1728293434938,3.2078,2457.5,2457.2,0.1017]
[1728293435133,3.2078,2457.7,2457.2,0.1017]
[1728293435335,3.2078,2457.7,2457.6,0.40699]
[1728293437035,1.342,2458.0,2457.6,7.8788]
[1728293437036,4.5498,2458.0,2457.6,7.8788]
[1728293437237,4.28354,2458.0,2457.8,0.40696]
[1728293437438,0.40695,2457.9,2457.4,3.81]
[1728293437638,3.2078,2457.8,2457.7,0.40698]
[1728293438837,0.40699,2457.7,2457.5,0.40701]
[1728293439135,3.2078,2457.8,2457.6,0.40699]
[1728293439136,3.61477,2457.8,2457.6,0.40699]
[1728293439339,3.2078,2457.8,2457.7,0.40698]
[1728293439641,3.2078,2457.8,2457.3,2.36661]
[1728293439839,3.2078,2457.8,2457.6,0.40698]
[1728293440145,3.61477,2457.8,2457.6,0.40698]
[1728293440341,3.2078,2457.8,2457.3,1.349]
[1728293440544,3.2078,2457.8,2457.2,4.6246]
[1728293440545,3.2078,2457.5,2457.4,0.40703]
[1728293440844,3.2078,2457.5,2457.2,0.1017]
[1728293441035,4.21705,2457.3,2457.2,0.1017]
[1728293441239,0.40712,2456.9,2456.6,0.40716]
[1728293441437,3.2078,2456.7,2456.2,1.3915]
[1728293441636,4.5122,2456.8,2455.9,4.82819]
[1728293441637,7.0178,2456.4,2456.3,0.40721]
[1728293441842,7.0178,2456.4,2456.2,0.40722]
[1728293442145,3.2078,2456.4,2456.3,0.40721]
[1728293442344,3.2078,2456.7,2456.6,0.40716]
[1728293442846,3.2078,2456.7,2456.5,0.40717]
[1728293443042,3.2078,2456.7,2456.2,0.40723]
[1728293443242,3.2078,2456.7,2456.6,0.40716]
[1728293443744,3.2078,2456.7,2456.3,1.3407]
[1728293443942,3.2078,2456.4,2456.3,0.40721]
[1728293444449,3.2078,2456.4,2456.3,4.47841]
[1728293445447,3.2078,2456.4,2456.3,0.40721]
[1728293446144,3.2078,2456.7,2456.3,4.0712]
[1728293446334,3.2078,2456.7,2456.6,0.40716]
[1728293446743,3.2078,2456.7,2456.6,4.47756]
[1728293446943,3.2078,2456.7,2456.6,8.28756]
[1728293448039,4.31195,2457.3,2456.6,8.28756]
[1728293448239,0.40708,2457.2,2456.8,0.40712]
[1728293448448,3.2078,2457.0,2456.8,0.40712]
[1728293448637,3.61491,2457.0,2456.7,0.40713]
[1728293448945,3.2078,2457.0,2456.9,0.40711]
[1728293449143,3.9049,2457.3,2456.5,5.70793]
[1728293449338,3.2078,2457.0,2456.9,0.40711]
[1728293450054,3.2078,2457.0,2456.8,0.40712]
[1728293450741,3.2078,2457.0,2456.4,2.0091]
[1728293450938,0.40717,2456.6,2456.3,0.4072]
[1728293451142,3.2078,2456.4,2456.3,0.40721]
[1728293451741,3.2078,2456.4,2456.3,4.47841]
[1728293452343,3.2078,2456.9,2456.7,0.40714]
[1728293452541,3.2078,2456.9,2456.3,1.01803]
[1728293452748,3.2078,2456.9,2456.7,0.40714]
[1728293452944,0.40714,2456.8,2456.1,0.1017]
[1728293453141,3.2078,2456.6,2456.5,0.40718]
[1728293453340,3.61497,2456.6,2456.4,0.40719]
[1728293453542,3.61497,2456.6,2456.1,0.1017]
[1728293453947,3.2078,2456.6,2456.5,0.40718]
[1728293454943,0.6685,2456.7,2456.5,4.0704]
[1728293455147,3.2078,2456.9,2456.8,0.40713]
[1728293455540,3.2078,2456.9,2456.6,0.6873]
[1728293455742,3.2078,2456.9,2456.6,0.789]
[1728293455949,3.2078,2456.9,2456.8,0.40713]
[1728293457750,3.61493,2456.9,2456.7,0.40714]
[1728293458142,3.61493,2456.9,2456.7,0.40715]
[1728293458749,3.61493,2456.9,2456.8,0.40713]
[1728293458750,3.2078,2456.9,2456.8,0.40713]
[1728293459453,3.61493,2456.9,2456.7,0.40714]
[1728293460454,3.61493,2456.9,2456.7,0.40715]
[1728293460655,3.2078,2456.9,2456.8,0.40713]
[1728293460855,3.2078,2457.2,2457.1,0.40708]
[1728293464150,4.5867,2457.7,2457.3,0.40704]
[1728293464354,3.2078,2457.4,2457.3,0.40704]
[1728293467352,4.99368,2457.7,2457.2,1.01764]
[1728293467552,4.99369,2457.7,2457.2,1.01764]
[1728293468150,0.407,2457.6,2457.1,1.42479]
[1728293468346,0.407,2457.6,2457.4,0.40702]
[1728293468962,4.5867,2457.7,2457.6,0.407]
[1728293469661,3.9255,2457.7,2457.6,0.407]
[1728293470454,3.9255,2457.7,2457.4,3.81]
[1728293470660,4.33249,2457.7,2457.5,0.407]
[1728293470847,3.9255,2457.7,2457.6,0.407]
[1728293471054,4.33248,2457.7,2457.4,3.81]
[1728293471253,3.9255,2457.7,2457.6,0.407]
[1728293471453,3.9255,2457.7,2457.4,0.40702]
[1728293471454,0.40701,2457.6,2457.4,0.40702]
[1728293471657,3.9255,2457.7,2457.6,0.407]
[1728293471954,4.33249,2457.7,2457.5,0.407]
[1728293472358,0.407,2457.6,2457.5,0.407]
[1728293472559,0.407,2457.6,2457.5,0.5087]
[1728293472757,3.9255,2457.7,2457.6,0.407]
[1728293473158,4.3325,2457.7,2457.5,0.50871]
[1728293473357,4.3325,2457.7,2457.6,0.407]
[1728293473862,0.407,2457.6,2457.5,0.50871]
[1728293474161,4.33249,2457.7,2457.6,0.407]
[1728293474356,3.9255,2457.7,2457.6,0.407]
[1728293474659,3.2078,2457.7,2457.6,0.407]
[1728293474855,3.61479,2457.7,2457.6,0.407]
[1728293475657,0.407,2457.6,2457.5,1.21521]
[1728293475860,0.407,2457.6,2457.5,0.5087]
[1728293476761,3.2078,2457.7,2457.5,0.1017]
[1728293476954,3.2078,2457.7,2457.6,0.407]
[1728293476955,3.61478,2457.7,2457.6,0.407]
[1728293477151,3.9036,2458.0,2457.6,4.4758]
[1728293477366,3.2078,2458.0,2457.9,0.40695]
[1728293479256,3.8708,2458.3,2458.2,0.4069]
[1728293480765,4.27768,2458.3,2458.2,0.4069]
[1728293480972,4.27768,2458.3,2457.8,4.8274]
[1728293481267,3.8708,2458.3,2458.2,0.4069]
[1728293483371,4.27768,2458.3,2458.2,0.4069]
[1728293483560,4.27768,2458.3,2458.1,0.40691]
[1728293483561,0.4069,2458.2,2458.1,0.40691]
[1728293483761,4.27769,2458.3,2458.2,0.4069]
[1728293483968,3.8708,2458.3,2458.2,0.4069]
[1728293484568,4.27768,2458.3,2458.2,0.4069]
[1728293486859,3.8708,2458.3,2458.2,0.4069]
[1728293488168,3.2078,2458.3,2458.2,8.2849]
[1728293490161,3.2078,2458.6,2458.5,0.40685]
[1728293491668,3.2078,2458.6,2458.3,4.5299]
[1728293491973,3.2078,2458.6,2457.6,1.58756257]
[1728293491974,0.40695,2457.9,2457.6,0.40699]
[1728293492170,3.2078,2457.7,2457.6,0.407]
[1728293492464,3.2078,2457.7,2457.6,4.217]
[1728293492863,3.61473,2458.1,2457.7,0.40697]
[1728293493062,0.40694,2458.0,2457.7,0.40697]
[1728293493266,3.2078,2457.8,2457.7,4.21697]
[1728293493666,3.2078,2457.8,2457.7,8.28577]
[1728293493862,3.2078,2458.1,2457.7,7.8788]
[1728293494067,3.61472,2458.1,2457.8,0.40695]
[1728293494272,3.2078,2458.1,2457.7,3.81]
[1728293494477,3.2078,2458.1,2458.0,0.40693]
[1728293494869,3.2078,2458.1,2458.0,4.47493]
[1728293495066,3.2078,2458.5,2458.2,0.4069]
[1728293495371,3.2078,2458.5,2458.4,0.40687]
[1728293497465,3.2078,2458.5,2458.4,8.28487]
[1728293497665,0.40682,2458.7,2458.5,0.40684]
[1728293497877,3.61461,2458.8,2458.4,3.81]
[1728293498076,1.3727,2458.7,2458.6,0.40683]
[1728293500283,0.6954,2458.7,2458.6,0.40683]
[1728293500487,3.2078,2458.8,2458.7,0.40682]
[1728293501784,3.2078,2458.8,2458.5,0.77]
[1728293502082,3.6146,2458.8,2458.6,0.40682]
[1728293502276,3.2078,2458.8,2458.5,0.1016]
[1728293502680,3.61461,2458.8,2458.6,0.40683]
[1728293503282,3.2078,2458.8,2458.5,0.1016]
[1728293503484,3.2078,2458.8,2458.7,0.40682]
[1728293505179,3.2078,2458.8,2458.6,3.81]
[1728293505384,3.2078,2458.8,2458.7,0.40682]
[1728293505784,3.61461,2458.8,2458.6,4.21682]
[1728293505987,3.2078,2458.8,2458.7,0.40682]
[1728293507488,3.2078,2458.8,2458.6,0.40683]
[1728293507690,3.2078,2458.8,2458.5,0.1016]
[1728293507886,0.40682,2458.7,2458.5,0.50844]
[1728293508295,0.40682,2458.7,2458.5,0.1016]
[1728293508587,3.61461,2458.8,2458.6,0.40683]
[1728293508982,3.2078,2458.8,2458.6,3.81]
[1728293509188,3.2078,2458.8,2458.7,0.40682]
[1728293511001,3.2078,2458.8,2458.7,8.28402]
[1728293511196,3.2078,2458.8,2458.7,4.21682]
[1728293511587,3.61461,2458.8,2458.6,4.21683]
[1728293511795,3.61461,2458.8,2458.5,0.1016]
[1728293511796,0.40682,2458.7,2458.5,0.1016]
[1728293511995,0.40682,2458.7,2458.5,0.50844]
[1728293512596,3.2078,2458.8,2458.6,0.40683]
[1728293512896,0.40682,2458.7,2458.5,0.50843]
[1728293513190,0.40682,2458.7,2458.6,0.40683]
[1728293513395,3.2078,2458.8,2458.5,0.1016]
[1728293513698,0.40682,2458.7,2458.6,0.40683]
[1728293513895,3.6146,2458.8,2458.6,0.40683]
[1728293514090,3.6146,2458.8,2458.5,0.1016]
[1728293514091,3.6146,2458.8,2458.7,0.40682]
[1728293514389,3.6146,2458.8,2458.6,0.40682]
[1728293514990,3.2078,2458.8,2458.7,0.40682]
[1728293515390,3.2078,2458.8,2458.7,4.47402]
[1728293515592,3.2078,2459.2,2459.1,0.40675]
[1728293516007,3.2078,2459.2,2459.0,3.81]
[1728293516293,3.61454,2459.2,2459.0,3.81]
[1728293516495,3.61454,2459.2,2459.0,4.21676]
[1728293516699,3.61454,2459.2,2459.0,3.81]
[1728293516999,3.61454,2459.2,2459.1,0.40675]
[1728293517293,3.61454,2459.2,2459.0,0.1016]
[1728293517294,0.40675,2459.1,2459.0,0.1016]